[Event "14th Karen Asrian Memorial 2024"]
[Site "Yerevan"]
[Date "2024.05.02"]
[Round "9.4"]
[White "Ohanyan, Emin"]
[Black "Hakobyan, Erik"]
[Result "1-0"]
[ECO "E12"]
[WhiteElo "2488"]
[BlackElo "2383"]
[Annotator "TA"]
[PlyCount "77"]
[EventDate "2024.04.24"]
[EventType "swiss"]
[EventCountry "ARM"]
[SourceTitle "playchess.com"]
[Source "ChessBase"]
[SourceQuality "1"]
[TimeControl "40/5400+30:1800+30"]

{[%evp 10,77,9,10,30,31,34,16,36,32,32,20,20,22,16,0,0,0,1,18,7,0,0,0,0,-10,16,-44,0,0,5,14,6,-10,105,101,185,143,115,43,112,106,112,44,54,0,0,5,86,77,92,84,239,230,255,262,686,679,572,300,395,380,868,883,1221,1138,29983,29984,5355,5071]} 1. d4 {[%emt 0:06:54]} Nf6 {[%emt 0:00:11]} 2. Nf3 {[%emt 0:00:03]} e6 {[%emt 0:00:23]} 3. c4 {[%emt 0:00:06]} b6 {[%emt 0:03:05]} 4. a3 {[%emt 0:01:53]} Bb7 {[%emt 0:01:54]} 5. Nc3 {[%emt 0:00:58]} d5 {[%emt 0:01:14]} 6. Bf4 {[%emt 0:01:40]} a6 {[%emt 0:11:58]} 7. e3 {[%emt 0:10:14]} Nbd7 {[%emt 0:05:51]} 8. cxd5 {[%emt 0:04:54]} exd5 {[%emt 0:03:00] The position is equal.} 9. Bd3 {[%emt 0:04:12]} Be7 {[%emt 0:03:58]} 10. h3 {[%emt 0:04:32]} O-O {[%emt 0:01:48]} 11. O-O {[%emt 0:00:04]} Re8 {[%emt 0:05:01]} 12. Rc1 {[%emt 0:02:26]} c5 {[%emt 0:03:40]} 13. Bb1 {[%emt 0:02:04]} Nf8 {[%emt 0:04:20]} 14. Ne5 {[%emt 0:14:45]} Ne6 {[%emt 0:03:26]} 15. Bh2 {[%emt 0:00:11]} Rc8 {[%emt 0:02:08]} 16. Kh1 {[%emt 0:01:25]} b5 {[%emt 0:12:36]} 17. Ne2 {[%emt 0:04:14]} Qb6 {[%emt 0:02:31]} 18. Qd3 {[%emt 0:11:00]} (18. dxc5 $11 Rxc5 19. Rxc5 Bxc5 20. Nd3) 18... g6 {[%emt 0:01:35]} (18... c4 $15 19. Qd1 a5) 19. f4 $11 {[%emt 0:06:42][%cal Bf2f4,Bf4f5][%mdl 32]} Ng7 {[%emt 0:06:18] [#]} 20. f5 $1 {[%emt 0:02:31][%cal Rf5g6]} g5 {[%emt 0:05:44]} 21. Nc3 {[%emt 0:06:34]} cxd4 {[%emt 0:05:01]} (21... h6 $11) 22. exd4 $16 {[%emt 0:00:13]} (22. Qxd4 $2 {too greedy.} Bc5 23. Qd3 Bxe3 $19) 22... b4 {[%emt 0:00:07]} (22... h6 $16) 23. axb4 $1 $18 {[%emt 0:03:50]} Qxb4 {[%emt 0:00:11]} 24. Ng4 {[%emt 0:01:31]} (24. Qd2 $16) 24... Qxb2 {[%emt 0:08:31]} (24... Nxg4 $14 25. hxg4 f6) 25. Be5 $1 $36 {[%emt 0:01:05][%mdl 2048] White is really pushing.} Ngh5 {[%emt 0:03:01] [#]} 26. Qe3 {[%emt 0:03:16] Against Nf4. Some like it hot} ({White should try} 26. Rc2 $1 $16 {[%cal Rc2b2]} Qb6 27. Na4) 26... Nxg4 $14 {[%emt 0:00:49]} 27. hxg4 {[%emt 0:00:01][%cal Of5f6]} Nf4 $1 {[%emt 0:00:01][%csl Gf4][%cal Rb2g2]} 28. Rc2 {[%emt 0:00:19]} Qa3 {[%emt 0:02:20]} (28... Qb6 $1 $11 {keeps the balance.} 29. g3 Nh3) 29. g3 $1 $16 {[%emt 0:01:14][%cal Bg2g3,Bg3f4,Bf4e5][%mdl 32]} Bb4 {[%emt 0:01:21][%cal Rc8c3]} 30. gxf4 {[%emt 0:00:58][%cal Oe3h3] Threatens to win with Qh3!} f6 $2 {[%emt 0:00:30] [#] Loses the game.} (30... Rxc3 $16 {is a better defense.} 31. Rxc3 Qxc3 32. Qxc3 Bxc3) 31. Nd1 $1 $18 {[%emt 0:01:02]} fxe5 {[%emt 0:02:03]} (31... Qxe3 32. Nxe3) 32. fxe5 {[%emt 0:01:28]} h6 {[%emt 0:00:44]} (32... Qxe3 33. Nxe3 Rxc2 34. Bxc2 (34. Nxc2 Bd2 $18) 34... Rb8) 33. f6 {[%emt 0:01:24]} Kf7 {[%emt 0:00:15]} 34. Qxa3 {[%emt 0:01:01]} Bxa3 {[%emt 0:00:05]} 35. Ne3 {[%emt 0:00:11]} h5 $2 {[%emt 0:00:30]} (35... Rh8 36. Re2 (36. Ra2 Bb4 $18) 36... h5) 36. Rxc8 {[%emt 0:00:18]} Rxc8 {[%emt 0:00:44]} 37. gxh5 {[%emt 0:00:44] Black must now prevent Bg6+.} Rc3 {[%emt 0:00:09]} 38. Bg6+ {[%emt 0:00:24]} Kf8 {[%emt 0:00:05]} 39. Rb1 {[%emt 0:01:08] Weighted Error Value: White=0.30/Black=0.64.  Mistake:       	White=3     	Black=8      Inaccurate:     	White=1     	Black=2      OK:         	White=8     	Black=6      Best:        	White=1     	Black=2      Strong:       	White=4     	Black=1} 1-0

[Event "14th Karen Asrian Memorial 2024"]
[Site "Yerevan"]
[Date "2024.05.02"]
[Round "9.5"]
[White "Davtyan, Artur"]
[Black "Korshunov, Sergey And."]
[Result "1/2-1/2"]
[ECO "C50"]
[WhiteElo "2474"]
[BlackElo "2286"]
[Annotator "TA"]
[PlyCount "78"]
[EventDate "2024.04.24"]
[EventType "swiss"]
[EventCountry "ARM"]
[SourceTitle "playchess.com"]
[Source "ChessBase"]
[SourceQuality "1"]
[TimeControl "40/5400+30:1800+30"]

{[%evp 12,78,0,10,22,22,25,26,31,17,25,25,35,15,10,13,29,1,0,8,67,14,0,0,36,56,42,-34,28,-2,47,-37,-32,-43,-25,-66,-71,-64,-38,-292,-302,-341,-362,-323,-166,-159,-60,-50,-17,-210,-12,-38,-25,-188,-107,-182,-162,-179,-15,-16,-15,-16,-20,-20,0,0,0,-20,0]} 1. e4 {[%emt 0:13:35]} e5 {[%emt 0:00:13]} 2. Bc4 {[%emt 0:00:05]} Nf6 {[%emt 0:00:20]} 3. d3 {[%emt 0:00:04]} Bc5 {[%emt 0:02:17]} 4. Nf3 {[%emt 0:02:59]} Nc6 {[%emt 0:00:11]} 5. O-O {[%emt 0:00:07]} O-O {[%emt 0:00:03]} 6. Bg5 {[%emt 0:00:05]} h6 {[%emt 0:01:52]} 7. Bh4 {[%emt 0:00:06]} Be7 {[%emt 0:01:12]} 8. Bg3 {[%emt 0:00:32]} d6 {[%emt 0:00:35]} 9. a4 {[%emt 0:00:05]} Kh8 {[%emt 0:09:29] White has an edge.} 10. c3 {[%emt 0:00:58]} Nh7 {[%emt 0:01:40]} 11. a5 {[%emt 0:02:03]} Rb8 {[%emt 0:10:17]} 12. d4 {[%emt 0:16:20]} f5 {[%emt 0:09:59]} 13. exf5 {[%emt 0:05:18]} (13. dxe5 $2 f4 14. exd6 cxd6 $19) 13... e4 {[%emt 0:00:09]} 14. Ne1 {[%emt 0:13:40]} (14. Nfd2 $5) 14... d5 {[%emt 0:00:04]} 15. Bb3 {[%emt 0:16:21]} b6 {[%emt 0:13:59]} (15... Bxf5 $11 16. Nc2 Nf6) 16. axb6 {[%emt 0:00:40]} (16. Nc2 $14) 16... Rxb6 $11 {[%emt 0:00:06]} 17. Nd2 {[%emt 0:01:03]} Ba6 {[%emt 0:02:51] [#]} 18. Rxa6 $1 {[%emt 0:01:33]} Rxa6 {[%emt 0:00:04]} 19. Nc2 {[%emt 0:00:07]} (19. f3 $14 e3 20. Qe2 exd2 21. Qxa6 dxe1=R (21... dxe1=B 22. Rxe1 Nb8 23. Qxa7 $11) 22. Rxe1) 19... Bd6 {[%emt 0:04:50]} (19... Rxf5 $2 20. Ne3 Rg5 21. Qe2 $18 (21. h4 Rxg3 22. fxg3 Ra5 $18)) ({Black should try} 19... Bg5 $15) 20. Bxd6 {[%emt 0:03:26]} Qxd6 {[%emt 0:00:08]} 21. f3 {[%emt 0:00:03]} (21. c4 $14) 21... exf3 $1 $15 {[%emt 0:09:31]} (21... Rxf5 22. fxe4 Rxf1+ 23. Qxf1 $11) 22. Nxf3 {[%emt 0:03:47]} Rb6 $36 {[%emt 0:02:07][%mdl 2048] Black is pushing.} (22... Rxf5 $6 23. Ne3 Rh5 24. Ne5 Rxe5 25. dxe5 Nxe5 26. Qxd5 (26. Bxd5 Nf6 $11) 26... Qxd5 27. Nxd5 $14 (27. Bxd5 Nf6 $11)) 23. Ne3 {[%emt 0:00:06]} Nf6 {[%emt 0:00:17]} 24. c4 {[%emt 0:06:20] c5 would now be deadly.} Qb4 {[%emt 0:13:36]} 25. Ba2 {[%emt 0:00:05][%mdl 8192]} ({Only move:} 25. Ba4 $1 $15) 25... Qxb2 $19 {[%emt 0:02:46]} 26. c5 {[%emt 0:00:01]} Ra6 {[%emt 0:01:20]} (26... Rb4 27. Rf2 Qc3 28. Qd2 Qxd2 29. Rxd2 $19) 27. Bxd5 {[%emt 0:00:42]} Qc3 {[%emt 0:00:12]} (27... Nxd5 $142 28. Nxd5 Ra2 (28... Rxf5 $2 29. Qd3 $19)) 28. Re1 {[%emt 0:03:14]} Re8 {[%emt 0:05:06]} (28... Rd8 $2 29. Bxc6 Rxc6 30. Qa4 $18) ({Black should play} 28... Nb4 $1 $17 29. Bc4 Ra3) 29. Be6 $15 {[%emt 0:02:01]} Rd8 {[%emt 0:01:33]} (29... Nb4 $5 30. Qb1 Raxe6 31. fxe6 Rxe6 $11) 30. d5 {[%emt 0:10:04]} (30. Qc2 $11 {and White is okay.} Ra3 31. Qxc3 Rxc3 32. d5) 30... Ne5 $2 {[%emt 0:01:58]} (30... Qxc5 31. Qc1 Qxc1 32. Rxc1) (30... Ra3 $19 31. h3 Qxc5) 31. Nxe5 $11 {[%emt 0:00:00]} Qxe5 {[%emt 0:00:04]} 32. Nc4 $2 {[%emt 0:00:00]} (32. Ng4 $1 $11 Qc3 33. Nxf6 Qxf6 (33... Qxc5+ 34. Kh1 $11) 34. Kh1) 32... Qc3 $19 {[%emt 0:01:33]} 33. d6 {[%emt 0:00:50]} cxd6 {[%emt 0:00:37]} 34. cxd6 {[%emt 0:00:09] [#]} Raxd6 {[%emt 0:02:59]} 35. Nxd6 $11 {[%emt 0:00:01] [#] The position is equal.} Rxd6 {[%emt 0:00:09]} 36. Qc1 {[%emt 0:00:50]} (36. Qa1 Qb4) 36... Qd4+ {[%emt 0:00:38]} 37. Kh1 {[%emt 0:00:01]} Ng4 {[%emt 0:00:41]} 38. Rf1 {[%emt 0:00:28]} Rd8 {[%emt 0:00:34] ( -> ...Qe5)} (38... Nf2+ 39. Rxf2 Rxe6 (39... Qxf2 40. Qc8+) 40. fxe6) 39. Qe1 {[%emt 0:00:37]} (39. h3 $5 Nf2+ 40. Kh2 $11) 39... Qe3 {[%emt 0:01:10] Weighted Error Value: White=0.41/Black=0.38.  Loses game:     	White=3     	---        Missed win:     	---       	Black=2      Mistake:       	White=3     	Black=4      Inaccurate:     	White=3     	Black=4      OK:         	White=8     	Black=11     Best:        	White=4     	Black=1      Strong:       	---       	Black=1      Brilliant:      	White=1     	---} (39... Ne3 $5 40. Rg1 Ng4 $11) 1/2-1/2

[Event "14th Karen Asrian Memorial 2024"]
[Site "Yerevan"]
[Date "2024.05.02"]
[Round "9.6"]
[White "Danielyan, Vahe"]
[Black "Manukyan, Aleks"]
[Result "1/2-1/2"]
[ECO "C90"]
[WhiteElo "2331"]
[BlackElo "2163"]
[Annotator "TA"]
[PlyCount "104"]
[EventDate "2024.04.24"]
[EventType "swiss"]
[EventCountry "ARM"]
[SourceTitle "playchess.com"]
[Source "ChessBase"]
[SourceQuality "1"]
[TimeControl "40/5400+30:1800+30"]

{[%evp 20,104,42,33,50,44,72,50,40,7,10,7,45,0,-5,-54,-36,-56,56,21,98,122,92,88,85,83,97,33,41,0,22,18,15,0,32,0,0,-22,-13,-21,0,-15,17,24,20,23,29,14,34,12,62,56,62,60,57,0,0,0,0,0,0,0,0,0,41,48,42,43,70,0,0,0,0,0,0,0,0,0,0,0,0,0,0,0,0,0,0]} 1. e4 {[%emt 0:00:24]} e5 {[%emt 0:00:01]} 2. Nf3 {[%emt 0:00:07]} Nc6 {[%emt 0:00:06]} 3. Bb5 {[%emt 0:00:06]} a6 {[%emt 0:01:18]} 4. Ba4 {[%emt 0:00:06]} Nf6 {[%emt 0:00:08]} 5. O-O {[%emt 0:00:08]} b5 {[%emt 0:00:39]} 6. Bb3 {[%emt 0:00:06]} Be7 {[%emt 0:00:04]} 7. Re1 {[%emt 0:00:33]} d6 {[%emt 0:00:09]} 8. c3 {[%emt 0:00:06]} Na5 {[%emt 0:00:55]} 9. Bc2 {[%emt 0:00:06]} c5 {[%emt 0:00:10]} 10. d4 {[%emt 0:00:27]} Qc7 {[%emt 0:00:09]} 11. d5 {[%emt 0:02:08]} Nc4 {[%emt 0:02:48]} 12. b3 {[%emt 0:00:09]} Nb6 {[%emt 0:00:06]} 13. Nbd2 {[%emt 0:00:05]} O-O {[%emt 0:01:06] White is slightly better.} 14. Nf1 {[%emt 0:00:29]} a5 {[%emt 0:08:03]} 15. a4 {[%emt 0:01:03]} Bd7 {[%emt 0:07:15]} 16. Ne3 {[%emt 0:05:41]} (16. axb5 $14 c4 17. bxc4) 16... c4 $11 {[%emt 0:02:53]} 17. axb5 {[%emt 0:03:29]} (17. bxc4 $11 {is superior.} Nxc4 18. axb5) 17... cxb3 $15 {[%emt 0:08:14]} 18. Bxb3 {[%emt 0:00:05]} Bxb5 {[%emt 0:05:38]} (18... Nxe4 $15 19. c4 f5) 19. Nf5 {[%emt 0:00:50]} Nc4 {[%emt 0:09:40]} (19... Rfe8 $11) 20. Bxc4 $16 {[%emt 0:04:46]} Bxc4 {[%emt 0:00:10]} 21. Nd2 {[%emt 0:07:53] White is much more active. A dynamic duo of knights.} Ba6 {[%emt 0:11:21] [#]} 22. c4 $1 {[%emt 0:01:37]} Rfc8 {[%emt 0:05:58]} (22... Rfe8 23. Nxe7+) 23. Ba3 {[%emt 0:09:13]} (23. Nxe7+ $16 Qxe7 24. Rxa5) 23... Bf8 $14 {[%emt 0:05:24][%cal Og7g6]} 24. Rc1 {[%emt 0:00:03]} g6 {[%emt 0:01:35]} 25. Ne3 {[%emt 0:00:30]} Nd7 {[%emt 0:03:16]} 26. h4 {[%emt 0:01:06]} Nc5 {[%emt 0:02:25]} 27. Rc3 {[%emt 0:00:12] Prevents Nd3.} Rcb8 {[%emt 0:03:35]} 28. h5 {[%emt 0:02:19]} Bc8 {[%emt 0:00:06]} 29. hxg6 {[%emt 0:02:11]} fxg6 {[%emt 0:02:42]} 30. Ng4 {[%emt 0:02:55]} Bg7 {[%emt 0:01:25]} 31. Qf3 $1 {[%emt 0:00:26]} Qe7 {[%emt 0:01:22]} 32. Bxc5 {[%emt 0:02:05]} dxc5 {[%emt 0:00:01]} 33. Ra1 {[%emt 0:00:29]} Bd7 {[%emt 0:00:36]} 34. Ne3 {[%emt 0:00:04]} Qd6 {[%emt 0:00:55]} (34... a4 $11) 35. Qd1 {[%emt 0:01:15]} a4 {[%emt 0:01:55]} 36. Rca3 {[%emt 0:00:05]} Bh6 {[%emt 0:01:48]} 37. Nb1 {[%emt 0:00:28]} (37. Nf3 $14) 37... Rb4 $11 {[%emt 0:04:32]} 38. Nc3 {[%emt 0:06:53]} Bxe3 {[%emt 0:01:44]} 39. fxe3 {[%emt 0:00:03][%cal Rc3a4]} Rxc4 {[%emt 0:00:34]} 40. Nxa4 {[%emt 0:00:00]} Rcxa4 {[%emt 0:00:00]} (40... Rxe4 $2 {loses.} 41. Nxc5 Rxa3 42. Nxe4 $16) 41. Rxa4 {[%emt 0:01:06]} Rxa4 {[%emt 0:05:49]} 42. Rxa4 {[%emt 0:00:07]} Bxa4 {[%emt 0:00:03]} 43. Qxa4 {[%emt 0:00:04][%mdl 4096] Endgame. KQ-KQ} Kf7 {[%emt 0:02:45] Repels Qe8+} 44. Qa8 {[%emt 0:01:32]} (44. Kf1 $14) 44... Qe7 {[%emt 0:05:10] The position is equal.} 45. g3 {[%emt 0:08:46]} c4 {[%emt 0:02:37]} 46. Kg2 {[%emt 0:03:31]} Qc5 {[%emt 0:05:44]} 47. Qb7+ {[%emt 0:01:27]} Kf6 {[%emt 0:00:31]} 48. Qa6+ {[%emt 0:01:11]} Kg5 {[%emt 0:01:57]} 49. Qe6 {[%emt 0:06:44]} Qxe3 {[%emt 0:01:35]} 50. Qe7+ {[%emt 0:00:23]} Kh6 {[%emt 0:00:14]} 51. Qh4+ {[%emt 0:00:22]} Kg7 {[%emt 0:00:01] [#] aiming for ...Qe2+.} 52. Qe7+ {[%emt 0:00:09]} Kh6 {[%emt 0:00:02] Weighted Error Value: White=0.14 (very precise) /Black=0.18 (very precise) .  Mistake:       	White=5     	Black=3      Inaccurate:     	White=3     	Black=6      OK:         	White=15    	Black=17     Best:        	---       	Black=2      Strong:       	White=1     	---} 1/2-1/2

[Event "14th Karen Asrian Memorial 2024"]
[Site "Yerevan"]
[Date "2024.05.02"]
[Round "9.7"]
[White "Sanikidze, Tornike"]
[Black "Hayrapetyan, Edgar"]
[Result "1-0"]
[ECO "A13"]
[WhiteElo "2453"]
[BlackElo "2340"]
[Annotator "TA"]
[PlyCount "81"]
[EventDate "2024.04.24"]
[EventType "swiss"]
[EventCountry "ARM"]
[SourceTitle "playchess.com"]
[Source "ChessBase"]
[SourceQuality "1"]
[TimeControl "40/5400+30:1800+30"]

{[%evp 14,81,24,14,20,0,0,0,18,-35,-18,-22,-19,-31,-18,-59,-42,-58,-64,-108,-92,-91,-92,-84,-72,-92,-79,-140,18,20,17,0,47,0,0,0,63,0,35,36,170,132,245,233,251,259,254,174,175,89,74,52,385,385,400,379,452,441,463,459,691,715,687,406,455,389,1102,1064,29974,29975]} 1. Nf3 {[%emt 0:03:06]} Nf6 {[%emt 0:00:09]} 2. c4 {[%emt 0:00:14]} e6 {[%emt 0:01:34]} 3. g3 {[%emt 0:00:30]} d5 {[%emt 0:00:15]} 4. Bg2 {[%emt 0:00:56]} d4 {[%emt 0:06:47]} 5. O-O {[%emt 0:03:24]} c5 {[%emt 0:00:14]} 6. e3 {[%emt 0:01:26]} Nc6 {[%emt 0:00:42]} 7. exd4 {[%emt 0:00:15]} cxd4 {[%emt 0:00:22]} 8. d3 {[%emt 0:00:35]} Bd6 {[%emt 0:03:04]} 9. Na3 {[%emt 0:12:15]} O-O {[%emt 0:01:32]} 10. Nc2 {[%emt 0:00:46]} e5 {[%emt 0:02:24] The position is equal.} 11. Bg5 {[%emt 0:06:15]} (11. b4 $1 $11) 11... h6 $15 {[%emt 0:03:32]} 12. Bxf6 {[%emt 0:01:14]} Qxf6 {[%emt 0:00:08]} 13. Nd2 {[%emt 0:00:05]} Qg6 {[%emt 0:02:33]} 14. Re1 {[%emt 0:08:27]} a5 {[%emt 0:03:17]} (14... Qxd3 $2 15. Be4 $18) 15. Ne4 {[%emt 0:03:24]} Be7 {[%emt 0:00:38]} 16. Na3 {[%emt 0:04:00]} Bb4 {[%emt 0:19:19]} 17. Rf1 {[%emt 0:03:07] White is weak on the dark squares} f5 {[%emt 0:04:09]} 18. Nd2 {[%emt 0:03:39]} e4 {[%emt 0:00:04]} 19. dxe4 {[%emt 0:01:26] [#]} f4 $1 {[%emt 0:00:08]} 20. Nb5 {[%emt 0:04:40]} (20. Nc2 $142) 20... Bxd2 $2 {[%emt 0:14:19]} (20... fxg3 $17 21. hxg3 Bg4) 21. Qxd2 $11 {[%emt 0:00:17]} f3 {[%emt 0:00:03]} 22. Bh1 {[%emt 0:00:08]} Bh3 {[%emt 0:06:14]} (22... Qxe4 23. Rfe1 Qg4 24. Rad1 $16) 23. Rfe1 {[%emt 0:02:14]} Rad8 {[%emt 0:00:07]} 24. e5 {[%emt 0:01:27]} Be6 {[%emt 0:02:27]} (24... h5 $1 $11) 25. c5 {[%emt 0:09:48]} ({Better is} 25. b3 $14) 25... d3 {[%emt 0:08:32]} 26. Re3 {[%emt 0:01:59][%cal Ob5d6]} Qg4 {[%emt 0:00:10]} (26... Rd5 $1 $14) 27. Nd6 $1 $18 {[%emt 0:03:48]} Nd4 {[%emt 0:01:19]} (27... Nb4 $16 {was necessary.}) 28. Qxd3 {[%emt 0:00:10] And now h3 would win.} Ne2+ {[%emt 0:00:32] [#]} 29. Rxe2 $1 {[%emt 0:00:32]} fxe2 {[%emt 0:00:19]} 30. Re1 {[%emt 0:00:11]} Qb4 {[%emt 0:06:32]} 31. Qxe2 {[%emt 0:00:30]} (31. Qc3 $18) 31... Rd7 $16 {[%emt 0:00:04]} (31... Qxc5 32. Nxb7 Qd4 33. Nxd8 (33. Nxa5 Qd2 $11) 33... Rxd8 34. Bf3 $18) 32. Rc1 {[%emt 0:10:43] a3 is the strong threat.} Qd4 $2 {[%emt 0:00:20][%mdl 8192]} ({Black should try} 32... Bxa2 $14 33. f4 Re7) 33. Bxb7 $18 {[%emt 0:08:21]} (33. Nxb7 Rdf7 34. Rd1 (34. Nxa5 Rxf2) 34... Rxf2 35. Rxd4 Rxe2 $17) 33... Re7 {[%emt 0:07:43]} 34. Nb5 {[%emt 0:03:01]} Qb4 {[%emt 0:01:23]} 35. a3 {[%emt 0:00:57]} Qb3 {[%emt 0:00:32]} 36. Be4 {[%emt 0:00:23]} Bg4 {[%emt 0:01:36]} (36... Bh3 $142 37. f4 Bg4) 37. Qxg4 {[%emt 0:01:51][%cal Og4g6] Black must now prevent Qg6!} Qxb2 {[%emt 0:00:12]} 38. Rb1 {[%emt 0:00:46]} ({And not} 38. Bd5+ Kh8 39. Qd1 Rxe5 $11) 38... Qxf2+ {[%emt 0:00:07]} 39. Kh1 {[%emt 0:00:00]} g5 $2 {[%emt 0:05:57]} (39... Rxe5 40. Qg6 Rxe4 41. Qxe4 Qxc5) 40. Qh5 {[%emt 0:00:00]} Qa2 {[%emt 0:00:00]} 41. Nc3 {[%emt 0:02:17] Weighted Error Value: White=0.38/Black=0.59.  Loses game:     	---       	Black=1      Mistake:       	White=4     	Black=6      Inaccurate:     	White=3     	Black=2      OK:         	White=13    	Black=12     Best:        	White=3     	Black=3      Strong:       	White=1     	Black=1      Brilliant:      	White=1     	---} 1-0

[Event "14th Karen Asrian Memorial 2024"]
[Site "Yerevan"]
[Date "2024.05.02"]
[Round "9.8"]
[White "Shahinyan, David"]
[Black "Dilanyan, Grigor"]
[Result "1/2-1/2"]
[ECO "B23"]
[WhiteElo "2441"]
[BlackElo "2174"]
[Annotator "TA"]
[PlyCount "109"]
[EventDate "2024.04.24"]
[EventType "swiss"]
[EventCountry "ARM"]
[SourceTitle "playchess.com"]
[Source "ChessBase"]
[SourceQuality "1"]
[TimeControl "40/5400+30:1800+30"]

{[%evp 9,109,10,29,14,23,14,41,40,47,42,44,27,61,24,28,19,43,31,45,-12,33,24,34,23,41,28,31,28,35,34,36,31,37,10,33,12,47,10,31,0,0,0,0,0,0,0,15,0,0,0,0,0,0,0,0,0,25,0,0,0,0,0,0,0,0,0,0,0,0,0,0,0,0,0,0,0,0,0,0,0,0,0,0,0,0,0,0,0,0,0,0,0,0,0,0,0,0,0,0,0,0,0]} 1. e4 {[%emt 0:00:04]} c5 {[%emt 0:11:33]} 2. Nc3 {[%emt 0:01:29]} a6 {[%emt 0:00:30]} 3. g3 {[%emt 0:00:05]} b5 {[%emt 0:00:06]} 4. Bg2 {[%emt 0:00:03]} Bb7 {[%emt 0:00:05]} 5. d3 {[%emt 0:00:02]} g6 {[%emt 0:01:07]} 6. Nh3 {[%emt 0:01:06]} Bg7 {[%emt 0:01:57]} 7. O-O {[%emt 0:00:40]} b4 {[%emt 0:09:04]} 8. Nd5 {[%emt 0:06:31] White is slightly better.} e6 {[%emt 0:04:08]} 9. Ne3 {[%emt 0:00:54]} Ne7 {[%emt 0:02:01]} 10. f4 {[%emt 0:06:08]} f5 {[%emt 0:05:30]} 11. e5 {[%emt 0:01:42]} Bxg2 {[%emt 0:01:04]} 12. Kxg2 {[%emt 0:00:03]} d5 {[%emt 0:07:18]} 13. exd6 {[%emt 0:05:14]} Qxd6 {[%emt 0:02:26]} 14. Nc4 {[%emt 0:00:51]} (14. Ng5 $14) 14... Qd5+ {[%emt 0:02:58]} 15. Qf3 {[%emt 0:01:18]} h6 {[%emt 0:06:35] Prevents Ng5.} 16. Be3 {[%emt 0:08:23][%cal Oe3c5]} Qxf3+ {[%emt 0:05:21]} 17. Rxf3 {[%emt 0:00:58]} Nd7 {[%emt 0:00:05]} 18. Re1 {[%emt 0:03:38] Bg1 would now be deadly.} Nd5 {[%emt 0:07:00]} 19. Rf2 {[%emt 0:10:09]} a5 {[%emt 0:00:59]} 20. Rfe2 {[%emt 0:03:32]} (20. Bd2 {looks sharper.} Kf7 21. Rfe2 Ra6 22. a4) 20... Ra6 {[%emt 0:02:54]} 21. Ng1 {[%emt 0:01:21]} Ke7 {[%emt 0:02:21]} 22. Nf3 {[%emt 0:00:36]} Rc8 {[%emt 0:00:43]} 23. Bd2 {[%emt 0:05:54]} (23. a4 {simplifies} N7b6 24. Nxb6 Rxb6 25. b3) 23... a4 {[%emt 0:00:48]} 24. h4 {[%emt 0:01:31]} Rcc6 {[%emt 0:01:18]} 25. h5 {[%emt 0:07:31]} gxh5 {[%emt 0:03:37]} 26. Nfe5 {[%emt 0:02:41]} Nxe5 {[%emt 0:02:27]} 27. fxe5 {[%emt 0:00:03]} Nb6 {[%emt 0:00:20]} 28. Nxb6 {[%emt 0:16:32]} Raxb6 {[%emt 0:00:50]} 29. b3 {[%emt 0:00:07]} Ra6 {[%emt 0:02:20][%cal Bb6a6,Ba6a2,Ba2b2][%mdl 32]} 30. Rh1 {[%emt 0:00:21]} axb3 {[%emt 0:02:51]} 31. axb3 {[%emt 0:00:02]} Kf7 {[%emt 0:00:32]} 32. Rxh5 {[%emt 0:01:03][%cal Oh5h4]} Ra2 {[%emt 0:00:08]} 33. Be1 {[%emt 0:02:06][%cal Og3g4]} ({But not} 33. Bxh6 Kg6 34. Bxg7 Kxh5 $15) 33... Rc8 {[%emt 0:03:02] The position is equal.} 34. Bf2 {[%emt 0:00:00]} Rd8 {[%emt 0:00:12]} 35. Bxc5 {[%emt 0:06:47]} Rxd3 {[%emt 0:00:06]} 36. Bxb4 {[%emt 0:00:17]} Rxb3 {[%emt 0:00:06]} 37. Rh4 {[%emt 0:00:01]} Rab2 {[%emt 0:05:20]} 38. Be1 {[%emt 0:01:14]} Rb7 {[%emt 0:05:13]} 39. Rc4 {[%emt 0:02:27] Against Rc7} R2b5 {[%emt 0:00:06]} 40. Bc3 {[%emt 0:00:00]} Bf8 {[%emt 0:00:00]} 41. Bd4 {[%emt 0:04:56]} Rb4 {[%emt 0:04:18]} 42. Rxb4 {[%emt 0:01:37]} Rxb4 $11 {[%emt 0:00:03][%mdl 4096] Endgame. KRB-KRB} 43. c3 {[%emt 0:00:17]} Rb7 {[%emt 0:05:52]} 44. Ra2 {[%emt 0:01:00]} Rc7 {[%emt 0:01:19]} 45. Ra5 {[%emt 0:00:35]} h5 {[%emt 0:00:50]} 46. Kf3 {[%emt 0:01:53]} Bh6 {[%emt 0:00:37]} 47. Ra2 {[%emt 0:01:11]} Kg6 {[%emt 0:01:45]} 48. Ra6 {[%emt 0:02:05]} Kf7 {[%emt 0:00:14]} 49. Ra2 {[%emt 0:00:05]} Rc6 {[%emt 0:00:56]} 50. Ra7+ {[%emt 0:06:12]} Kg6 {[%emt 0:03:17]} 51. Ra2 {[%emt 0:00:04]} Bg5 {[%emt 0:02:52]} 52. Ra8 {[%emt 0:01:19]} Bd2 {[%emt 0:01:59]} 53. Ra2 {[%emt 0:00:15]} Bh6 {[%emt 0:01:01]} 54. Ra8 {[%emt 0:00:04]} Bd2 {[%emt 0:00:23]} 55. Ra2 {[%emt 0:00:03] Weighted Error Value: White=0.09 (flawless) /Black=0.06 (flawless) .  Mistake:       	White=1     	---        Inaccurate:     	White=4     	Black=4      OK:         	White=22    	Black=21} 1/2-1/2